fUSD/lending_fUSD_20250522
["ID","MTS","AMOUNT","RATE_DAILY","PERIOD"]
[362018861,1747937453092,-420.0,0.0003479,5]
[362018874,1747937453201,-420.0,0.0003479,5]
[362018876,1747937453212,-420.0,0.0003479,5]
[362018878,1747937453221,-220.64172972,0.0003479,5]
[362018880,1747937453230,-722.99,0.0003479,5]
[362018882,1747937453240,-420.0,0.0003479,5]
[362018884,1747937453250,-420.0,0.0003479,5]
[362018886,1747937453259,-420.0,0.0003479,5]
[362018887,1747937453268,-420.0,0.0003479,5]
[362018889,1747937453277,-420.0,0.0003479,5]
[362018891,1747937453287,-420.0,0.0003479,5]
[362018893,1747937453296,-1357.38,0.0003479,5]
[362018895,1747937453305,-420.0,0.0003479,5]
[362018897,1747937453315,-420.0,0.0003479,5]
[362018899,1747937453323,-420.0,0.0003479,5]
[362018901,1747937453333,-420.0,0.00034791,5]
[362018903,1747937453342,-605.09,0.00034791,5]
[362018905,1747937453351,-460.61,0.00034791,5]
[362018907,1747937453361,-420.0,0.00034791,5]
[362018909,1747937453370,-420.0,0.00034791,5]
[362018911,1747937453379,-4093.55,0.00034791,5]
[362018913,1747937453388,-420.0,0.00034791,5]
[362018914,1747937453397,-420.0,0.00034791,5]
[362018916,1747937453407,-420.0,0.00034791,5]
[362018917,1747937453416,-614.93,0.00034791,5]
[362018919,1747937453425,-529.75,0.00034791,5]
[362018920,1747937453434,-460.73,0.00034791,5]
[362018921,1747937453443,-499.8519857,0.00034791,5]
[362018923,1747937453452,-421.75,0.00034791,5]
[362018924,1747937453461,-420.0,0.00034791,5]
[362018926,1747937453471,-420.0,0.00034791,5]
[362018927,1747937453481,-840.64,0.00034791,5]
[362018928,1747937453490,-420.0,0.00034791,5]
[362018930,1747937453500,-420.0,0.00034791,5]
[362018931,1747937453509,-420.0,0.00034791,5]
[362018933,1747937453518,-451.26,0.00034791,5]
[362018934,1747937453527,-420.0,0.00034791,5]
[362018936,1747937453537,-1689.02,0.00034791,5]
[362018937,1747937453547,-420.0,0.00034791,5]
[362018939,1747937453556,-420.0,0.00034791,5]
[362018940,1747937453566,-420.0,0.00034791,5]
[362018942,1747937453576,-420.0,0.00034791,5]
[362018943,1747937453585,-671.16,0.00034791,5]
[362018945,1747937453595,-420.0,0.00034791,5]
[362018946,1747937453604,-420.0,0.00034791,5]
[362018948,1747937453613,-420.0,0.00034791,5]
[362018949,1747937453622,-420.0,0.00034791,5]
[362018951,1747937453631,-420.0,0.00034791,5]
[362018952,1747937453640,-421.39,0.00034791,5]
[362018954,1747937453649,-420.0,0.00034791,5]
[362018955,1747937453659,-420.0,0.00034791,5]
[362018957,1747937453668,-1814.1,0.00034791,5]
[362018958,1747937453677,-420.0,0.00034791,5]
[362018960,1747937453687,-420.0,0.00034791,5]
[362018961,1747937453696,-420.0,0.00034791,5]
[362018963,1747937453705,-420.0,0.00034791,5]
[362018965,1747937453714,-216.3567904,0.00034792,5]
[362018966,1747937453724,-420.0,0.00034792,5]
[362018968,1747937453733,-420.0,0.00034792,5]
[362018969,1747937453743,-420.0,0.00034792,5]
[362018971,1747937453752,-420.0,0.00034792,5]
[362018972,1747937453761,-420.0,0.00034792,5]
[362018974,1747937453770,-365.78650756,0.00034792,5]
[362018976,1747937453779,-420.0,0.00034792,5]
[362018977,1747937453789,-420.0,0.00034792,5]
[362018979,1747937453798,-175.88208182,0.00034792,5]
[362018980,1747937453807,-481.48215633,0.00034792,5]
[362018982,1747937453817,-420.0,0.00034792,5]
[362018983,1747937453826,-420.0,0.00034792,5]
[362018985,1747937453836,-420.0,0.00034792,5]
[362018987,1747937453845,-420.0,0.00034792,5]
[362018988,1747937453855,-420.0,0.00034792,5]
[362018990,1747937453865,-340.89553927,0.00034792,5]
[362018991,1747937453874,-420.0,0.00034792,5]
[362018993,1747937453883,-420.0,0.00034792,5]
[362018994,1747937453892,-442.79602033,0.00034792,5]
[362018996,1747937453901,-420.0,0.00034792,5]
[362018997,1747937453911,-420.0,0.00034792,5]
[362018999,1747937453920,-420.0,0.00034792,5]
[362019001,1747937453929,-420.0,0.00034792,5]
[362019002,1747937453939,-420.0,0.00034792,5]
[362019004,1747937453948,-420.0,0.00034792,5]
[362019005,1747937453957,-420.0,0.00034792,5]
[362019007,1747937453967,-420.0,0.00034792,5]
[362019008,1747937453982,-420.0,0.00034792,5]
[362019010,1747937453992,-420.0,0.00034792,5]
[362019012,1747937454001,-420.0,0.00034792,5]
[362019013,1747937454011,-420.0,0.00034792,5]
[362019015,1747937454021,-420.0,0.00034792,5]
[362019016,1747937454031,-420.0,0.00034792,5]
[362019018,1747937454040,-420.0,0.00034792,5]
[362019019,1747937454053,-420.0,0.00034792,5]
[362019021,1747937454063,-529.08,0.00034792,5]
[362019023,1747937454072,-420.0,0.00034792,5]
[362019024,1747937454081,-420.0,0.00034792,5]
[362019026,1747937454090,-567.22084618,0.00034792,5]
[362019027,1747937454100,-420.0,0.00034792,5]
[362019029,1747937454109,-420.0,0.00034792,5]
[362019030,1747937454118,-420.0,0.00034792,5]
[362019032,1747937454127,-420.0,0.00034792,5]
[362019034,1747937454136,-2720.57193715,0.000348,31]
[362019050,1747937454345,-7836.95781294,0.000348,31]
[362019052,1747937454355,-243.39,0.000348,31]
[362019054,1747937454365,-243.39,0.000348,31]
[362019056,1747937454374,-243.39,0.000348,31]
[362019058,1747937454384,-243.39,0.000348,31]
[362019060,1747937454393,-243.39,0.000348,31]
[362019061,1747937454403,-243.39,0.000348,31]
[362019063,1747937454412,-243.39,0.000348,31]
[362019065,1747937454421,-243.39,0.000348,31]
[362019067,1747937454430,-243.39,0.000348,31]
[362019069,1747937454440,-243.39,0.000348,31]
[362019071,1747937454450,-243.39,0.000348,31]
[362019072,1747937454459,-243.39,0.000348,31]
[362019073,1747937454468,-985.13451526,0.00034821,5]
[362019074,1747937454476,-1000.0,0.00034821,5]
[362019075,1747937454485,-20000.0,0.000349,120]
[362019076,1747937454494,-2930.85,0.000349,2]
[362019077,1747937454503,-150.0,0.00034902,5]
[362019078,1747937454512,-150.0,0.00034902,5]
[362019079,1747937454522,-150.0,0.00034929,5]
[362019080,1747937454532,-150.0,0.00034929,5]
[362019081,1747937454541,-223.79607025,0.00034957,5]
[362019082,1747937454550,-297.08217457,0.00034957,5]
[362019083,1747937454559,-5174.48306721,0.0003496,2]
[362019084,1747937454569,-165.05211231,0.0003499,2]
[362019085,1747937454578,-9371.0269062,0.00034991,2]
[362019086,1747937454587,-30248.0802014,0.00034991,2]
[362019087,1747937454597,-151.0,0.00034993,7]
[362019088,1747937454607,-15969.97371559,0.00035,60]
[362019089,1747937454616,-900.0,0.00035,36]
[362019090,1747937454625,-169.72193967,0.00035,120]
[362019091,1747937454635,-500.0,0.00035,120]
[362019092,1747937454644,-1199.19991996,0.00035,2]
[362019093,1747937454654,-205961.32137342,0.00035,2]
[362019094,1747937454663,-228.44635911,0.00035,2]
[362019095,1747937454672,-150.0,0.00035,2]
[362019096,1747937454682,-1000.0,0.00035,2]
[362019097,1747937454692,-42584.70587646,0.00035,2]
[362019098,1747937454702,-171.45,0.00035,14]
[362019099,1747937454712,-151.0,0.00035,7]
[362019100,1747937454722,-888.0,0.00035,5]
[362019102,1747937454731,-900.0,0.00035,60]
[362019103,1747937454741,-291.87145106,0.00035,10]
[362019104,1747937454750,-38936.77567112,0.00035,10]
[362019106,1747937454760,-299.857842,0.00035,4]
[362019107,1747937454769,-15565.00091981,0.00035,2]
[362019109,1747937454778,-4850.0,0.00035,5]
[362019111,1747937454788,-44533.6199006,0.00035016,2]
[362019113,1747937454797,-500.0,0.0003504,7]
[362019115,1747937454807,-524.64,0.0003504,8]
[362019117,1747937454816,-420.0,0.00035063,5]
[362019119,1747937454826,-635.62,0.00035063,5]
[362019121,1747937454836,-420.0,0.00035063,5]
[362019123,1747937454845,-420.0,0.00035063,5]
[362019125,1747937454854,-420.0,0.00035063,5]
[362019127,1747937454863,-420.0,0.00035063,5]
[362019128,1747937454872,-420.0,0.00035063,5]
[362019130,1747937454881,-420.0,0.00035063,5]
[362019132,1747937454891,-420.0,0.00035063,5]
[362019134,1747937454900,-420.0,0.00035063,5]
[362019136,1747937454910,-420.0,0.00035063,5]
[362019138,1747937454920,-3537.06,0.00035063,2]
[362019140,1747937454930,-420.0,0.00035063,5]
[362019142,1747937454940,-420.0,0.00035063,5]
[362019144,1747937454949,-420.0,0.00035063,5]
[362019146,1747937454959,-420.0,0.00035064,5]
[362019148,1747937454969,-420.0,0.00035064,5]
[362019150,1747937454982,-420.0,0.00035064,5]
[362019152,1747937454992,-420.0,0.00035064,5]
[362019154,1747937455001,-420.0,0.00035064,5]
[362019156,1747937455011,-420.0,0.00035064,5]
[362019158,1747937455020,-420.0,0.00035064,5]
[362019160,1747937455028,-420.0,0.00035064,5]
[362019162,1747937455038,-420.0,0.00035064,5]
[362019164,1747937455047,-420.0,0.00035064,5]
[362019166,1747937455058,-420.0,0.00035064,5]
[362019168,1747937455066,-536.36701874,0.00035064,5]
[362019170,1747937455075,-420.0,0.00035064,5]
[362019172,1747937455089,-420.0,0.00035064,5]
[362019174,1747937455098,-250.0,0.00035064,5]
[362019176,1747937455107,-420.0,0.00035064,5]
[362019179,1747937455117,-471.63,0.00035064,5]
[362019181,1747937455125,-420.0,0.00035064,5]
[362019183,1747937455135,-420.0,0.00035064,5]
[362019185,1747937455144,-420.0,0.00035064,5]
[362019187,1747937455154,-420.0,0.00035064,5]
[362019188,1747937455163,-420.0,0.00035064,5]
[362019190,1747937455172,-420.0,0.00035064,5]
[362019192,1747937455182,-420.0,0.00035064,5]
[362019194,1747937455191,-420.0,0.00035064,5]
[362019196,1747937455201,-420.0,0.00035064,5]
[362019198,1747937455210,-420.0,0.00035064,5]
[362019200,1747937455220,-588.31,0.00035064,5]
[362019202,1747937455229,-420.0,0.00035064,5]
[362019204,1747937455238,-420.0,0.00035064,5]
[362019206,1747937455247,-420.0,0.00035064,5]
[362019208,1747937455256,-420.0,0.00035064,5]
[362019210,1747937455265,-420.0,0.00035064,5]
[362019212,1747937455275,-184.5047799,0.00035064,5]
[362019214,1747937455285,-420.0,0.00035064,5]
[362019216,1747937455294,-420.0,0.00035064,5]
[362019218,1747937455303,-180.74318334,0.00035064,5]
[362019220,1747937455312,-420.0,0.00035064,5]
[362019222,1747937455321,-420.0,0.00035064,5]
[362019224,1747937455331,-420.0,0.00035064,5]
[362019226,1747937455340,-420.0,0.00035064,5]
[362019228,1747937455349,-420.0,0.00035064,5]
[362019230,1747937455358,-420.0,0.00035064,5]
[362019232,1747937455367,-420.0,0.00035064,5]
[362019234,1747937455376,-420.0,0.00035064,5]
[362019236,1747937455386,-420.0,0.00035064,5]
[362019238,1747937455395,-420.0,0.00035064,5]
[362019240,1747937455405,-420.0,0.00035064,5]
[362019242,1747937455414,-420.0,0.00035064,5]
[362019244,1747937455424,-420.0,0.00035064,5]
[362019246,1747937455433,-420.0,0.00035064,5]
[362019248,1747937455442,-420.0,0.00035064,5]
[362019250,1747937455451,-420.0,0.00035064,5]
[362019252,1747937455460,-420.0,0.00035064,5]
[362019254,1747937455469,-420.0,0.00035064,5]
[362019256,1747937455479,-420.0,0.00035064,5]
[362019257,1747937455488,-420.0,0.00035064,5]
[362019259,1747937455497,-420.0,0.00035064,5]
[362019261,1747937455506,-420.0,0.00035064,5]
[362019263,1747937455515,-420.0,0.00035064,5]
[362019265,1747937455524,-420.0,0.00035064,5]
[362019267,1747937455533,-420.0,0.00035064,5]
[362019269,1747937455543,-420.0,0.00035064,5]
[362019271,1747937455552,-420.0,0.00035064,5]
[362019273,1747937455561,-420.0,0.00035064,5]
[362019275,1747937455570,-420.0,0.00035064,5]
[362019277,1747937455579,-495.74123038,0.00035064,5]
[362019279,1747937455589,-420.0,0.00035064,5]
[362019281,1747937455598,-420.0,0.00035064,5]
[362019283,1747937455607,-420.0,0.00035064,5]
[362019285,1747937455616,-1000.0,0.00035064,2]
[362019287,1747937455625,-372.36657382,0.00035064,5]
[362019289,1747937455634,-420.0,0.00035064,5]
[362019291,1747937455644,-420.0,0.00035064,5]
[362019293,1747937455653,-420.0,0.00035064,5]
[362019295,1747937455663,-7658.46,0.00035064,5]
[362019297,1747937455672,-420.0,0.00035064,5]
[362019299,1747937455681,-518.64,0.00035064,5]
[362019301,1747937455691,-420.0,0.00035064,5]
[362019303,1747937455700,-420.0,0.00035064,5]
[362019305,1747937455709,-420.0,0.00035064,5]
[362019307,1747937455718,-420.0,0.00035064,5]
[362019309,1747937455728,-420.0,0.00035064,5]
[362019311,1747937455737,-340.05695475,0.00035064,5]
[362019313,1747937455746,-420.0,0.00035064,5]
[362019315,1747937455755,-420.0,0.00035064,5]
[362019317,1747937455765,-420.0,0.00035064,5]
[362019319,1747937455774,-420.0,0.00035064,5]
[362019321,1747937455783,-420.0,0.00035064,5]
[362019323,1747937455793,-420.0,0.00035064,5]
[362019325,1747937455803,-420.0,0.00035064,5]
[362019327,1747937455811,-1061.71,0.00035064,5]
[362019329,1747937455821,-420.0,0.00035064,5]
[362019331,1747937455830,-420.0,0.00035064,5]
[362019333,1747937455840,-420.0,0.00035064,5]
[362019335,1747937455849,-420.0,0.00035064,5]
[362019337,1747937455858,-420.0,0.00035064,5]
[362019339,1747937455867,-420.0,0.00035064,5]
[362019341,1747937455876,-420.0,0.00035064,5]
[362019343,1747937455885,-420.0,0.00035064,5]
[362019345,1747937455895,-420.0,0.00035064,5]
[362019347,1747937455904,-420.0,0.00035064,5]
[362019348,1747937455914,-420.0,0.00035064,5]
[362019350,1747937455923,-420.0,0.00035064,5]
[362019352,1747937455932,-537.85,0.00035064,5]
[362019354,1747937455941,-420.0,0.00035064,5]
[362019356,1747937455952,-420.0,0.00035064,5]
[362019359,1747937455962,-428.87753,0.00035064,5]
[362019361,1747937455973,-202.64528596,0.00035064,5]
[362019363,1747937455982,-1577.75,0.00035064,5]
[362019365,1747937455993,-420.0,0.00035064,5]
[362019367,1747937456003,-420.0,0.00035064,5]
[362019369,1747937456013,-420.0,0.00035064,5]
[362019371,1747937456022,-1079.12,0.00035064,5]
[362019373,1747937456032,-420.0,0.00035064,5]
[362019375,1747937456041,-420.0,0.00035064,5]
[362019376,1747937456053,-420.0,0.00035064,5]
[362019378,1747937456062,-831.61,0.00035064,5]
[362019381,1747937456071,-420.0,0.00035064,5]
[362019382,1747937456080,-420.0,0.00035064,5]
[362019384,1747937456090,-2312.37,0.00035064,5]
[362019387,1747937456099,-611.84,0.00035064,5]
[362019389,1747937456109,-420.0,0.00035064,5]
[362019391,1747937456119,-236.84935637,0.00035064,5]
[362019392,1747937456128,-390.15512179,0.00035064,5]
[362019394,1747937456138,-420.0,0.00035064,5]
[362019396,1747937456147,-420.0,0.00035064,5]
[362019398,1747937456156,-420.0,0.00035064,5]
[362019400,1747937456166,-722.99,0.00035064,5]
[362019402,1747937456175,-420.0,0.00035064,5]
[362019404,1747937456184,-420.0,0.00035064,5]
[362019406,1747937456194,-420.0,0.00035064,5]
[362019408,1747937456203,-420.0,0.00035064,5]
[362019410,1747937456213,-420.0,0.00035064,5]
[362019412,1747937456221,-424.34522758,0.00035064,5]
[362019414,1747937456230,-1357.38,0.00035064,5]
[362019416,1747937456240,-420.0,0.00035064,5]
[362019418,1747937456249,-420.0,0.00035064,5]
[362019420,1747937456258,-420.0,0.00035064,5]
[362019422,1747937456267,-420.0,0.00035065,5]
[362019424,1747937456277,-605.09,0.00035065,5]
[362019426,1747937456286,-460.61,0.00035065,5]
[362019428,1747937456295,-420.0,0.00035065,5]
[362019430,1747937456304,-420.0,0.00035065,5]
[362019432,1747937456314,-4093.55,0.00035065,5]
[362019434,1747937456323,-420.0,0.00035065,5]
[362019436,1747937456332,-420.0,0.00035065,5]
[362019438,1747937456341,-420.0,0.00035065,5]
[362019440,1747937456350,-614.93,0.00035065,5]
[362019442,1747937456360,-529.75,0.00035065,5]
[362019444,1747937456369,-460.73,0.00035065,5]
[362019446,1747937456378,-252.1525,0.00035065,2]
[362019448,1747937456387,-421.75,0.00035065,5]
[362019450,1747937456397,-420.0,0.00035065,5]
[362019452,1747937456406,-420.0,0.00035065,5]
[362019454,1747937456415,-840.64,0.00035065,5]
[362019456,1747937456425,-420.0,0.00035065,5]
[362019458,1747937456435,-420.0,0.00035065,5]
[362019460,1747937456444,-539.46339837,0.00035065,5]
[362019462,1747937456454,-451.26,0.00035065,5]
[362019464,1747937456463,-420.0,0.00035065,5]
[362019466,1747937456472,-1689.02,0.00035065,5]
[362019468,1747937456481,-420.0,0.00035065,5]
[362019470,1747937456490,-420.0,0.00035065,5]
[362019472,1747937456500,-420.0,0.00035065,5]
[362019474,1747937456509,-420.0,0.00035065,5]
[362019476,1747937456518,-671.16,0.00035065,5]
[362019478,1747937456528,-420.0,0.00035065,5]
[362019480,1747937456537,-420.0,0.00035065,5]
[362019482,1747937456546,-420.0,0.00035065,5]
[362019484,1747937456555,-420.0,0.00035065,5]
[362019486,1747937456565,-420.0,0.00035065,5]
[362019488,1747937456574,-421.39,0.00035065,5]
[362019490,1747937456584,-420.0,0.00035065,5]
[362019492,1747937456593,-420.0,0.00035065,5]
[362019494,1747937456602,-1814.1,0.00035065,5]
[362019496,1747937456611,-420.0,0.00035065,5]
[362019498,1747937456620,-420.0,0.00035065,5]
[362019500,1747937456629,-470.22418673,0.00035065,5]
[362019502,1747937456638,-420.0,0.00035065,5]
[362019504,1747937456647,-150.0,0.00035065,2]
[362019506,1747937456657,-420.0,0.00035066,5]
[362019508,1747937456666,-420.0,0.00035066,5]
[362019510,1747937456675,-436.80379368,0.00035066,5]
[362019512,1747937456684,-151.0,0.00035066,7]
[362019514,1747937456693,-420.0,0.00035066,5]
[362019516,1747937456703,-420.0,0.00035066,5]
[362019518,1747937456713,-420.0,0.00035066,5]
[362019520,1747937456723,-420.0,0.00035066,5]
[362019522,1747937456733,-420.0,0.00035066,5]
[362019524,1747937456743,-420.0,0.00035066,5]
[362019526,1747937456752,-420.0,0.00035066,5]
[362019528,1747937456761,-420.0,0.00035066,5]
[362019530,1747937456770,-420.0,0.00035066,5]
[362019532,1747937456779,-420.0,0.00035066,5]
[362019534,1747937456789,-420.0,0.00035066,5]
[362019536,1747937456798,-420.0,0.00035066,5]
[362019538,1747937456807,-420.0,0.00035066,5]
[362019540,1747937456816,-420.0,0.00035066,5]
[362019542,1747937456825,-460.78103295,0.00035066,5]
[362019544,1747937456835,-420.0,0.00035066,5]
[362019546,1747937456844,-420.0,0.00035066,5]
[362019548,1747937456852,-420.0,0.00035066,5]
[362019550,1747937456862,-420.0,0.00035066,5]
[362019552,1747937456871,-420.0,0.00035066,5]
[362019554,1747937456880,-420.0,0.00035066,5]
[362019556,1747937456890,-420.0,0.00035066,5]
[362019558,1747937456898,-420.0,0.00035066,5]
[362019560,1747937456908,-420.0,0.00035066,5]
[362019562,1747937456917,-535.5089,0.00035066,5]
[362019564,1747937456927,-420.0,0.00035066,5]
[362019566,1747937456936,-420.0,0.00035066,5]
[362019568,1747937456945,-529.08,0.00035066,5]
[362019570,1747937456955,-420.0,0.00035066,5]
[362019572,1747937456966,-420.0,0.00035066,5]
[362019574,1747937456975,-420.0,0.00035066,5]
[362019576,1747937456985,-420.0,0.00035066,5]
[362019578,1747937456995,-420.0,0.00035066,5]
[362019580,1747937457005,-420.0,0.00035066,5]
[362019582,1747937457015,-420.0,0.00035068,14]
[362019584,1747937457024,-500.0,0.0003512,7]
[362019586,1747937457034,-211.0,0.0003514,2]
[362019588,1747937457045,-560.0,0.00035144,2]
[362019590,1747937457054,-150.052218,0.00035148,120]
[362019592,1747937457063,-166.66666666,0.00035151,30]
[362019594,1747937457072,-1600.0,0.00035157,7]
[362019596,1747937457082,-1600.0,0.00035178,7]
[362019598,1747937457090,-210.0,0.0003518,30]
[362019599,1747937457100,-1600.0,0.00035211,7]
[362019600,1747937457110,-151.0,0.0003527,7]
[362019602,1747937457119,-1000.0,0.000353,2]
[362019604,1747937457130,-200.28725259,0.000353,32]
[362019618,1747937457264,-420.0,0.00035337,5]
[362019620,1747937457276,-635.62,0.00035337,5]
[362019622,1747937457286,-420.0,0.00035337,5]
[362019624,1747937457295,-420.0,0.00035337,5]
[362019626,1747937457305,-420.0,0.00035337,5]
[362019628,1747937457315,-420.0,0.00035337,5]
[362019630,1747937457325,-420.0,0.00035337,5]
[362019632,1747937457336,-420.0,0.00035337,5]
[362019634,1747937457346,-420.0,0.00035337,5]
[362019636,1747937457356,-420.0,0.00035337,5]
[362019637,1747937457366,-518.28743874,0.00035337,5]
[362019639,1747937457376,-3537.06,0.00035337,2]
[362019641,1747937457389,-420.0,0.00035337,5]
[362019643,1747937457399,-420.0,0.00035337,5]
[362019646,1747937457414,-420.0,0.00035337,5]
[362019648,1747937457424,-420.0,0.00035338,5]
[362019650,1747937457434,-420.0,0.00035338,5]
[362019652,1747937457444,-420.0,0.00035338,5]
[362019654,1747937457454,-420.0,0.00035338,5]
[362019656,1747937457464,-420.0,0.00035338,5]
[362019658,1747937457473,-420.0,0.00035338,5]
[362019660,1747937457483,-420.0,0.00035338,5]
[362019662,1747937457494,-420.0,0.00035338,5]
[362019664,1747937457504,-420.0,0.00035338,5]
[362019666,1747937457514,-420.0,0.00035338,5]
[362019668,1747937457524,-420.0,0.00035338,5]
[362019670,1747937457533,-420.0,0.00035338,5]
[362019672,1747937457543,-199.99002764,0.00035338,5]
[362019674,1747937457553,-250.0,0.00035338,5]
[362019676,1747937457564,-420.0,0.00035338,5]
[362019678,1747937457574,-471.63,0.00035338,5]
[362019680,1747937457583,-420.0,0.00035338,5]
[362019682,1747937457593,-526.93862385,0.00035338,5]
[362019684,1747937457602,-420.0,0.00035338,5]
[362019686,1747937457612,-420.0,0.00035338,5]
[362019688,1747937457621,-420.0,0.00035338,5]
[362019690,1747937457631,-420.0,0.00035338,5]
[362019692,1747937457641,-420.0,0.00035338,5]
[362019694,1747937457650,-255.90386559,0.00035338,5]
[362019696,1747937457660,-420.0,0.00035338,5]
[362019697,1747937457669,-420.0,0.00035338,5]
[362019699,1747937457679,-588.31,0.00035338,5]
[362019701,1747937457688,-420.0,0.00035338,5]
[362019703,1747937457698,-314.13625834,0.00035338,5]
[362019705,1747937457707,-420.0,0.00035338,5]
[362019707,1747937457717,-420.0,0.00035338,5]
[362019709,1747937457726,-420.0,0.00035338,5]
[362019711,1747937457736,-250.00739191,0.00035338,5]
[362019712,1747937457745,-420.0,0.00035338,5]
[362019714,1747937457755,-420.0,0.00035338,5]
[362019716,1747937457765,-420.0,0.00035338,5]
[362019718,1747937457774,-346.73700541,0.00035338,5]
[362019720,1747937457784,-420.0,0.00035338,5]
[362019722,1747937457793,-420.0,0.00035338,5]
[362019724,1747937457802,-400.0,0.00035338,5]
[362019726,1747937457813,-420.0,0.00035338,5]
[362019728,1747937457823,-420.0,0.00035338,5]
[362019730,1747937457833,-420.0,0.00035338,5]
[362019732,1747937457843,-420.0,0.00035338,5]
[362019733,1747937457852,-236.32298733,0.00035338,5]
[362019734,1747937457861,-420.0,0.00035338,5]
[362019735,1747937457872,-420.0,0.00035338,5]
[362019736,1747937457882,-420.0,0.00035338,5]
[362019737,1747937457891,-420.0,0.00035338,5]
[362019738,1747937457901,-420.0,0.00035338,5]
[362019739,1747937457910,-420.0,0.00035338,5]
[362019740,1747937457920,-420.0,0.00035338,5]
[362019741,1747937457930,-420.0,0.00035338,5]
[362019742,1747937457940,-386.95622765,0.00035338,5]
[362019743,1747937457950,-420.0,0.00035338,5]
[362019744,1747937457960,-344.33062945,0.00035338,5]
[362019745,1747937457974,-420.0,0.00035338,5]
[362019746,1747937457983,-420.0,0.00035338,5]
[362019747,1747937457993,-420.0,0.00035338,5]
[362019748,1747937458003,-420.0,0.00035338,5]
[362019749,1747937458013,-420.0,0.00035338,5]
[362019750,1747937458022,-420.0,0.00035338,5]
[362019752,1747937458032,-420.0,0.00035338,5]
[362019753,1747937458041,-420.0,0.00035338,5]
[362019754,1747937458054,-420.0,0.00035338,5]
[362019756,1747937458064,-420.0,0.00035338,5]
[362019758,1747937458073,-1000.0,0.00035338,2]
[362019760,1747937458082,-420.0,0.00035338,5]
[362019762,1747937458092,-420.0,0.00035338,5]
[362019764,1747937458102,-420.0,0.00035338,5]
[362019766,1747937458111,-7658.46,0.00035338,5]
[362019768,1747937458120,-420.0,0.00035338,5]
[362019770,1747937458129,-518.64,0.00035338,5]
[362019772,1747937458139,-420.0,0.00035338,5]
[362019774,1747937458148,-420.0,0.00035338,5]
[362019776,1747937458157,-420.0,0.00035338,5]
[362019778,1747937458167,-420.0,0.00035338,5]
[362019780,1747937458176,-408.7849282,0.00035338,5]
[362019782,1747937458186,-420.0,0.00035338,5]
[362019784,1747937458195,-420.0,0.00035338,5]
[362019786,1747937458204,-420.0,0.00035338,5]
[362019788,1747937458214,-420.0,0.00035338,5]
[362019790,1747937458223,-420.0,0.00035338,5]
[362019792,1747937458233,-420.0,0.00035338,5]
[362019794,1747937458243,-229.64581106,0.00035338,5]
[362019796,1747937458253,-1061.71,0.00035338,5]
[362019798,1747937458263,-420.0,0.00035338,5]